Workbook

Sheet ESTIMATE
C1: PROJECT: ALTUS PUBLIC SCHOOLS L. MENDEL RIVERS ELEMENTARY | N1: Web: http://sigmaestimations.com Email: info@sigmaestimations.com
C3: LOCATION: AIR FORCE BASE, 3000 N VETERANS DR. ALTUS, OKLAHAMA 73521
A5: ITEM # | B5: DWG # | C5: CSI #/SUB DETAIL | D5: DESCRIPTION | E5: QTY. | F5: WASTE | G5: QTY. W/ WASTE | H5: UNIT | I5: UNIT LABOR HOURS | J5: TOTAL LABOR HOURS | K5: PER HOUR LABOR RATE | L5: TOTAL LABOR COST | M5: UNIT MATERIAL COST | N5: TOTAL MATERIAL COST | O5: ITEM COST | P5: TRADE COST
C6: 010000 | D6: DIVISION 01 — GENERAL REQUIREMENTS
A7: =IF(H7<>"",1+MAX(A1:A6),"") -> 1 | D7: Submittal Procedures | E7: 1 | F7: 0% | G7: =E7+(E7*F7) -> 1 | H7: LS | I7: 0.00 | J7: =I7*G7 -> 0.00 | K7: 0 | L7: =K7*J7 -> 0 | M7: 0 | N7: =M7*G7 -> 0 | O7: =L7+N7 -> 0
A8: =IF(H8<>"",1+MAX(A2:A7),"") -> 2 | D8: Temporary Facilities and Controls | E8: 1 | F8: 0% | G8: 1 | H8: LS | I8: 0.00 | J8: 0.00 | K8: 0 | L8: 0 | M8: 0 | N8: 0 | O8: 0
A9: 3 | D9: Closeout Procedures | E9: 1 | F9: 0% | G9: 1 | H9: LS | I9: 0.00 | J9: 0.00 | K9: 0 | L9: 0 | M9: 0 | N9: 0 | O9: 0
A10: 4 | D10: Payment Procedures | E10: 1 | F10: 0% | G10: 1 | H10: LS | I10: 0.00 | J10: 0.00 | K10: 0 | L10: 0 | M10: 0 | N10: 0 | O10: 0
A11: 5 | D11: Contract Modification Procedures | E11: 1 | F11: 0% | G11: 1 | H11: LS | I11: 0.00 | J11: 0.00 | K11: 0 | L11: 0 | M11: 0 | N11: 0 | O11: 0
A12: 6 | D12: Maintenance & Traffic Protection | E12: 1 | F12: 0% | G12: 1 | H12: LS | I12: 0.00 | J12: 0.00 | K12: 0 | L12: 0 | M12: 0 | N12: 0 | O12: 0
D13: SUBTOTAL | L13: =IF(H13<>"",0.4*N13,"") ->  | M13: =IF(H13<>"",N13-L13,"") ->  | P13: =SUM(O7:O12) -> 0
C14: 070000 | D14: DIVISION 07 — THERMAL AND MOISTURE PROTECTION | L14: =IF(H14<>"",0.4*N14,"") ->  | M14: =IF(H14<>"",N14-L14,"") -> 
D16: ROOF ASSEMBLY TYPE "K1a" - STANDING SEAM METAL ROOF
A17: =IF(H17<>"",1+MAX(A7:A16),"") -> 7 | B17: A302 | C17: A/A601 | D17: Pre-Finished Standing Seam Metal Roof - Pitch: 2.5:12 Basis Of Design: MBCI Metal Roof & Wall Systems | E17: =1115.21*1.025 -> 1143 | F17: 5% | G17: =E17+(E17*F17) -> 1200 | H17: SF | I17: 0.04 | J17: =I17*G17 -> 42.86 | K17: $48.89 | L17: =K17*J17 -> $2,095.53 | M17: $3.71 | N17: =M17*G17 -> $4,454.47 | O17: =L17+N17 -> $6,550
A18: =IF(H18<>"",1+MAX(A8:A17),"") -> 8 | B18: A302 | C18: A/A601 | D18: Continuous Moisture Barrier w/ Minimum 8" Overlap Vertically | E18: =1115.21*1.025 -> 1143 | F18: 5% | G18: 1200 | H18: SF | I18: 0.02 | J18: 18.69 | K18: $45.89 | L18: $857.86 | M18: $1.16 | N18: $1,388.68 | O18: $2,247
A19: 9 | B19: A302 | C19: A/A601 | D19: 2" Polyisocyanurate Rigid Insulation Board; Taper As Required - (R-32.5 Minimum) Basis Of Design: Atlas Roofing Corporation | E19: =E18*3 -> 3429 | F19: 5% | G19: =E19+(E19*F19) -> 3601 | H19: SF | I19: 0.02 | J19: 86.93 | K19: $45.89 | L19: $3,989.04 | M19: $2.00 | N19: $7,210.47 | O19: $11,200
D21: Warranty Period: 20 years from date of Substantial Completion
D23: ROOF ASSEMBLY TYPE "K1b" - STANDING SEAM METAL ROOF
A24: 10 | B24: A302 | C24: A/A601 | D24: Pre-Finished Standing Seam Metal Roof - Pitch: 2.5:12 Basis Of Design: MBCI Metal Roof & Wall Systems | E24: =1117.87*1.025 -> 1146 | F24: 5% | G24: =E24+(E24*F24) -> 1203 | H24: SF | I24: 0.04 | J24: =I24*G24 -> 42.96 | K24: $48.89 | L24: =K24*J24 -> $2,100.53 | M24: $3.71 | N24: =M24*G24 -> $4,465.09 | O24: =L24+N24 -> $6,566
A25: 11 | B25: A302 | C25: A/A601 | D25: Continuous Moisture Barrier w/ Minimum 8" Overlap Vertically | E25: =1117.87*1.025 -> 1146 | F25: 5% | G25: 1203 | H25: SF | I25: 0.02 | J25: 18.74 | K25: $45.89 | L25: $859.91 | M25: $1.16 | N25: $1,392.00 | O25: $2,252
A26: 12 | B26: A302 | C26: A/A601 | D26: 2" Polyisocyanurate Rigid Insulation Board; Taper As Required - (R-32.5 Minimum) Basis Of Design: Atlas Roofing Corporation | E26: =E25*3 -> 3437 | F26: 5% | G26: 3609 | H26: SF | I26: 0.02 | J26: 87.13 | K26: $45.89 | L26: $3,998.56 | M26: $2.00 | N26: $7,227.67 | O26: $11,226
D28: Warranty Period: 20 years from date of Substantial Completion
D30: ROOF ASSEMBLY TYPE "K2a" - STANDING SEAM METAL ROOF
A31: 13 | B31: A302 | C31: A/A601 | D31: Pre-Finished Standing Seam Metal Roof - Pitch: 2.5:12 Basis Of Design: MBCI Metal Roof & Wall Systems | E31: =1484.34*1.025 -> 1521 | F31: 5% | G31: =E31+(E31*F31) -> 1598 | H31: SF | I31: 0.04 | J31: =I31*G31 -> 57.05 | K31: $48.89 | L31: =K31*J31 -> $2,789.15 | M31: $3.71 | N31: =M31*G31 -> $5,928.88 | O31: =L31+N31 -> $8,718
A32: 14 | B32: A302 | C32: A/A601 | D32: Continuous Moisture Barrier w/ Minimum 8" Overlap Vertically | E32: =1484.34*1.025 -> 1521 | F32: 5% | G32: 1598 | H32: SF | I32: 0.02 | J32: 24.88 | K32: $45.89 | L32: $1,141.81 | M32: $1.16 | N32: $1,848.33 | O32: $2,990
A33: 15 | B33: A302 | C33: A/A601 | D33: 2" Polyisocyanurate Rigid Insulation Board; Taper As Required - (R-32.5 Minimum) Basis Of Design: Atlas Roofing Corporation | E33: =E32*3 -> 4564 | F33: 5% | G33: 4793 | H33: SF | I33: 0.02 | J33: 115.70 | K33: $45.89 | L33: $5,309.40 | M33: $2.00 | N33: $9,597.11 | O33: $14,907
D35: Warranty Period: 20 years from date of Substantial Completion
D37: ROOF ASSEMBLY TYPE "K2b" - STANDING SEAM METAL ROOF
A38: 16 | B38: A302 | C38: A/A601 | D38: Pre-Finished Standing Seam Metal Roof - Pitch: 2.5:12 Basis Of Design: MBCI Metal Roof & Wall Systems | E38: =1478.85*1.025 -> 1516 | F38: 5% | G38: =E38+(E38*F38) -> 1592 | H38: SF | I38: 0.04 | J38: =I38*G38 -> 56.84 | K38: $48.89 | L38: =K38*J38 -> $2,778.83 | M38: $3.71 | N38: =M38*G38 -> $5,906.95 | O38: =L38+N38 -> $8,686
A39: 17 | B39: A302 | C39: A/A601 | D39: Continuous Moisture Barrier w/ Minimum 8" Overlap Vertically | E39: =1478.85*1.025 -> 1516 | F39: 5% | G39: 1592 | H39: SF | I39: 0.02 | J39: 24.79 | K39: $45.89 | L39: $1,137.58 | M39: $1.16 | N39: $1,841.50 | O39: $2,979
A40: 18 | B40: A302 | C40: A/A601 | D40: 2" Polyisocyanurate Rigid Insulation Board; Taper As Required - (R-32.5 Minimum) Basis Of Design: Atlas Roofing Corporation | E40: =E39*3 -> 4547 | F40: 5% | G40: 4775 | H40: SF | I40: 0.02 | J40: 115.27 | K40: $45.89 | L40: $5,289.76 | M40: $2.00 | N40: $9,561.61 | O40: $14,851
D42: Warranty Period: 20 years from date of Substantial Completion
D44: ROOF ASSEMBLY TYPE "K3a" - STANDING SEAM METAL ROOF
A45: 19 | B45: A302 | C45: A/A601 | D45: Pre-Finished Standing Seam Metal Roof - Pitch: 2.5:12 Basis Of Design: MBCI Metal Roof & Wall Systems | E45: =450.77*1.025 -> 462 | F45: 5% | G45: =E45+(E45*F45) -> 485 | H45: SF | I45: 0.04 | J45: =I45*G45 -> 17.32 | K45: $48.89 | L45: =K45*J45 -> $847.02 | M45: $3.71 | N45: =M45*G45 -> $1,800.50 | O45: =L45+N45 -> $2,648
A46: 20 | B46: A302 | C46: A/A601 | D46: Continuous Moisture Barrier w/ Minimum 8" Overlap Vertically | E46: =450.77*1.025 -> 462 | F46: 5% | G46: 485 | H46: SF | I46: 0.02 | J46: 7.56 | K46: $45.89 | L46: $346.75 | M46: $1.16 | N46: $561.31 | O46: $908
A47: 21 | B47: A302 | C47: A/A601 | D47: 2" Polyisocyanurate Rigid Insulation Board; Taper As Required - (R-32.5 Minimum) Basis Of Design: Atlas Roofing Corporation | E47: =E46*3 -> 1386 | F47: 5% | G47: 1455 | H47: SF | I47: 0.02 | J47: 35.14 | K47: $45.89 | L47: $1,612.38 | M47: $2.00 | N47: $2,914.49 | O47: $4,527
D49: Warranty Period: 20 years from date of Substantial Completion
D51: ROOF ASSEMBLY TYPE "L1a" - STANDING SEAM METAL ROOF
A52: 22 | B52: A302 | C52: A/A601 | D52: Pre-Finished Standing Seam Metal Roof - Pitch: 2.5:12 Basis Of Design: MBCI Metal Roof & Wall Systems | E52: =1117.66*1.025 -> 1146 | F52: 5% | G52: =E52+(E52*F52) -> 1203 | H52: SF | I52: 0.04 | J52: =I52*G52 -> 42.96 | K52: $48.89 | L52: =K52*J52 -> $2,100.14 | M52: $3.71 | N52: =M52*G52 -> $4,464.25 | O52: =L52+N52 -> $6,564
A53: 23 | B53: A302 | C53: A/A601 | D53: Continuous Moisture Barrier w/ Minimum 8" Overlap Vertically | E53: =1117.66*1.025 -> 1146 | F53: 5% | G53: 1203 | H53: SF | I53: 0.02 | J53: 18.73 | K53: $45.89 | L53: $859.74 | M53: $1.16 | N53: $1,391.73 | O53: $2,251
A54: 24 | B54: A302 | C54: A/A601 | D54: 2" Polyisocyanurate Rigid Insulation Board; Taper As Required - (R-32.5 Minimum) Basis Of Design: Atlas Roofing Corporation | E54: =E53*3 -> 3437 | F54: 5% | G54: 3609 | H54: SF | I54: 0.02 | J54: 87.12 | K54: $45.89 | L54: $3,997.81 | M54: $2.00 | N54: $7,226.31 | O54: $11,224
D56: Warranty Period: 20 years from date of Substantial Completion
D58: ROOF ASSEMBLY TYPE "L1b" - STANDING SEAM METAL ROOF
A59: 25 | B59: A302 | C59: A/A601 | D59: Pre-Finished Standing Seam Metal Roof - Pitch: 2.5:12 Basis Of Design: MBCI Metal Roof & Wall Systems | E59: =1116.43*1.025 -> 1144 | F59: 5% | G59: =E59+(E59*F59) -> 1202 | H59: SF | I59: 0.04 | J59: =I59*G59 -> 42.91 | K59: $48.89 | L59: =K59*J59 -> $2,097.83 | M59: $3.71 | N59: =M59*G59 -> $4,459.34 | O59: =L59+N59 -> $6,557
A60: 26 | B60: A302 | C60: A/A601 | D60: Continuous Moisture Barrier w/ Minimum 8" Overlap Vertically | E60: =1116.43*1.025 -> 1144 | F60: 5% | G60: 1202 | H60: SF | I60: 0.02 | J60: 18.71 | K60: $45.89 | L60: $858.80 | M60: $1.16 | N60: $1,390.20 | O60: $2,249
A61: 27 | B61: A302 | C61: A/A601 | D61: 2" Polyisocyanurate Rigid Insulation Board; Taper As Required - (R-32.5 Minimum) Basis Of Design: Atlas Roofing Corporation | E61: =E60*3 -> 3433 | F61: 5% | G61: 3605 | H61: SF | I61: 0.02 | J61: 87.02 | K61: $45.89 | L61: $3,993.41 | M61: $2.00 | N61: $7,218.36 | O61: $11,212
D63: Warranty Period: 20 years from date of Substantial Completion
D65: ROOF ASSEMBLY TYPE "L2a" - STANDING SEAM METAL ROOF
A66: 28 | B66: A302 | C66: A/A601 | D66: Pre-Finished Standing Seam Metal Roof - Pitch: 2.5:12 Basis Of Design: MBCI Metal Roof & Wall Systems | E66: =1486.4*1.025 -> 1524 | F66: 5% | G66: =E66+(E66*F66) -> 1600 | H66: SF | I66: 0.04 | J66: =I66*G66 -> 57.13 | K66: $48.89 | L66: =K66*J66 -> $2,793.02 | M66: $3.71 | N66: =M66*G66 -> $5,937.11 | O66: =L66+N66 -> $8,730
A67: 29 | B67: A302 | C67: A/A601 | D67: Continuous Moisture Barrier w/ Minimum 8" Overlap Vertically | E67: =1486.4*1.025 -> 1524 | F67: 5% | G67: 1600 | H67: SF | I67: 0.02 | J67: 24.92 | K67: $45.89 | L67: $1,143.39 | M67: $1.16 | N67: $1,850.90 | O67: $2,994
A68: 30 | B68: A302 | C68: A/A601 | D68: 2" Polyisocyanurate Rigid Insulation Board; Taper As Required - (R-32.5 Minimum) Basis Of Design: Atlas Roofing Corporation | E68: =E67*3 -> 4571 | F68: 5% | G68: 4799 | H68: SF | I68: 0.02 | J68: 115.86 | K68: $45.89 | L68: $5,316.77 | M68: $2.00 | N68: $9,610.43 | O68: $14,927
D70: Warranty Period: 20 years from date of Substantial Completion
D72: ROOF ASSEMBLY TYPE "L2b" - STANDING SEAM METAL ROOF
A73: 31 | B73: A302 | C73: A/A601 | D73: Pre-Finished Standing Seam Metal Roof - Pitch: 2.5:12 Basis Of Design: MBCI Metal Roof & Wall Systems | E73: =1490.95*1.025 -> 1528 | F73: 5% | G73: =E73+(E73*F73) -> 1605 | H73: SF | I73: 0.04 | J73: =I73*G73 -> 57.30 | K73: $48.89 | L73: =K73*J73 -> $2,801.57 | M73: $3.71 | N73: =M73*G73 -> $5,955.28 | O73: =L73+N73 -> $8,757
A74: 32 | B74: A302 | C74: A/A601 | D74: Continuous Moisture Barrier w/ Minimum 8" Overlap Vertically | E74: =1490.95*1.025 -> 1528 | F74: 5% | G74: 1605 | H74: SF | I74: 0.02 | J74: 24.99 | K74: $45.89 | L74: $1,146.89 | M74: $1.16 | N74: $1,856.56 | O74: $3,003
A75: 33 | B75: A302 | C75: A/A601 | D75: 2" Polyisocyanurate Rigid Insulation Board; Taper As Required - (R-32.5 Minimum) Basis Of Design: Atlas Roofing Corporation | E75: =E74*3 -> 4585 | F75: 5% | G75: 4814 | H75: SF | I75: 0.02 | J75: 116.21 | K75: $45.89 | L75: $5,333.05 | M75: $2.00 | N75: $9,639.84 | O75: $14,973
D77: Warranty Period: 20 years from date of Substantial Completion
D79: ROOF ASSEMBLY TYPE "L3a" - STANDING SEAM METAL ROOF
A80: 34 | B80: A302 | C80: A/A601 | D80: Pre-Finished Standing Seam Metal Roof - Pitch: 2.5:12 Basis Of Design: MBCI Metal Roof & Wall Systems | E80: =451.75*1.025 -> 463 | F80: 5% | G80: =E80+(E80*F80) -> 486 | H80: SF | I80: 0.04 | J80: =I80*G80 -> 17.36 | K80: $48.89 | L80: =K80*J80 -> $848.86 | M80: $3.71 | N80: =M80*G80 -> $1,804.42 | O80: =L80+N80 -> $2,653
A81: 35 | B81: A302 | C81: A/A601 | D81: Continuous Moisture Barrier w/ Minimum 8" Overlap Vertically | E81: =451.75*1.025 -> 463 | F81: 5% | G81: 486 | H81: SF | I81: 0.02 | J81: 7.57 | K81: $45.89 | L81: $347.50 | M81: $1.16 | N81: $562.53 | O81: $910
A82: =IF(H82<>"",1+MAX(A72:A81),"") -> 36 | B82: A302 | C82: A/A601 | D82: 2" Polyisocyanurate Rigid Insulation Board; Taper As Required - (R-32.5 Minimum) Basis Of Design: Atlas Roofing Corporation | E82: =E81*3 -> 1389 | F82: 5% | G82: 1459 | H82: SF | I82: 0.02 | J82: 35.21 | K82: $45.89 | L82: $1,615.88 | M82: $2.00 | N82: $2,920.82 | O82: $4,537
D84: Warranty Period: 20 years from date of Substantial Completion
D86: ROOF ASSEMBLY TYPE "E2b" - STANDING SEAM METAL ROOF
A87: 37 | B87: A302 | C87: A/A601 | D87: Pre-Finished Standing Seam Metal Roof - Pitch: 1.5:12 Basis Of Design: MBCI Metal Roof & Wall Systems | E87: =2108.27*1.015 -> 2140 | F87: 5% | G87: =E87+(E87*F87) -> 2247 | H87: SF | I87: 0.04 | J87: =I87*G87 -> 80.24 | K87: $48.89 | L87: =K87*J87 -> $3,922.89 | M87: $3.71 | N87: =M87*G87 -> $8,338.88 | O87: =L87+N87 -> $12,262
A88: 38 | B88: A302 | C88: A/A601 | D88: Continuous Moisture Barrier w/ Minimum 8" Overlap Vertically | E88: =2108.27*1.015 -> 2140 | F88: 5% | G88: 2247 | H88: SF | I88: 0.02 | J88: 35.00 | K88: $45.89 | L88: $1,605.93 | M88: $1.16 | N88: $2,599.65 | O88: $4,206
A89: 39 | B89: A302 | C89: A/A601 | D89: 2" Polyisocyanurate Rigid Insulation Board; Taper As Required - (R-32.5 Minimum) Basis Of Design: Atlas Roofing Corporation | E89: =E88*3 -> 6420 | F89: 5% | G89: 6741 | H89: SF | I89: 0.02 | J89: 162.73 | K89: $45.89 | L89: $7,467.59 | M89: $2.00 | N89: $13,498.18 | O89: $20,966
D91: Warranty Period: 20 years from date of Substantial Completion
D93: ROOF ASSEMBLY TYPE "E3b" - STANDING SEAM METAL ROOF
A94: 40 | B94: A302 | C94: A/A601 | D94: Pre-Finished Standing Seam Metal Roof - Pitch: 1.5:12 Basis Of Design: MBCI Metal Roof & Wall Systems | E94: =2122.06*1.015 -> 2154 | F94: 5% | G94: =E94+(E94*F94) -> 2262 | H94: SF | I94: 0.04 | J94: =I94*G94 -> 80.76 | K94: $48.89 | L94: =K94*J94 -> $3,948.55 | M94: $3.71 | N94: =M94*G94 -> $8,393.42 | O94: =L94+N94 -> $12,342
A95: 41 | B95: A302 | C95: A/A601 | D95: Continuous Moisture Barrier w/ Minimum 8" Overlap Vertically | E95: =2122.06*1.015 -> 2154 | F95: 5% | G95: 2262 | H95: SF | I95: 0.02 | J95: 35.22 | K95: $45.89 | L95: $1,616.44 | M95: $1.16 | N95: $2,616.65 | O95: $4,233
A96: 42 | B96: A302 | C96: A/A601 | D96: 2" Polyisocyanurate Rigid Insulation Board; Taper As Required - (R-32.5 Minimum) Basis Of Design: Atlas Roofing Corporation | E96: =E95*3 -> 6462 | F96: 5% | G96: 6785 | H96: SF | I96: 0.02 | J96: 163.79 | K96: $45.89 | L96: $7,516.44 | M96: $2.00 | N96: $13,586.47 | O96: $21,103
D98: Warranty Period: 20 years from date of Substantial Completion
D100: ROOF ASSEMBLY TYPE "A1" - TPO MEMBRANE
A101: 43 | B101: A301 | C101: A601-A612 | D101: 80-Mil TPO Roof Membrane - Pitch: 3:12 Basis Of Design: Carlisle SynTec Incorporated | E101: =6288.44*1.03 -> 6477 | F101: 5% | G101: =E101+(E101*F101) -> 6801 | H101: SF | I101: 0.04 | J101: =I101*G101 -> 291.29 | K101: $48.89 | L101: =K101*J101 -> $14,241.32 | M101: $3.18 | N101: =M101*G101 -> $21,638.92 | O101: =L101+N101 -> $35,880
A102: 44 | B102: A301 | C102: A601-A612 | D102: 5/8" Thick Recovery Board | E102: =6288.44*1.03 -> 6477 | F102: 5% | G102: 6801 | H102: SF | I102: 0.02 | J102: 137.70 | K102: $48.89 | L102: $6,732.26 | M102: $1.41 | N102: $9,563.49 | O102: $16,296
A103: 45 | B103: A301 | C103: A601-A612 | D103: 2" Polyisocyanurate Rigid Insulation Board; Taper As Required - (R-32.5 Minimum) Basis Of Design: Atlas Roofing Corporation | E103: =E102*3 -> 19431 | F103: 5% | G103: 20403 | H103: SF | I103: 0.02 | J103: 492.55 | K103: $45.89 | L103: $22,603.13 | M103: $2.00 | N103: $40,856.69 | O103: $63,460
A104: 46 | B104: A301 | C104: Specs. | D104: Typ. Membrane Splice Per Manufacturer Requirements & - Adhesive Per Manufacturer Requirements - Hot Air Weld Per Manufacturer Requirements | E104: =6288.44*1.03 -> 6477 | F104: 5% | G104: 6801 | H104: SF | I104: 0.02 | J104: =I104*G104 -> 164.18 | K104: $48.89 | L104: =K104*J104 -> $8,026.93 | M104: $1.21 | N104: =M104*G104 -> $8,231.87 | O104: =L104+N104 -> $16,259
D106: Warranty Period: 20 years from date of Substantial Completion
D108: ROOF ASSEMBLY TYPE "A2" - TPO MEMBRANE
A109: 47 | B109: A301 | C109: A601-A612 | D109: 80-Mil TPO Roof Membrane Basis Of Design: Carlisle SynTec Incorporated | E109: =2384.64 -> 2385 | F109: 5% | G109: =E109+(E109*F109) -> 2504 | H109: SF | I109: 0.04 | J109: =I109*G109 -> 107.24 | K109: $48.89 | L109: =K109*J109 -> $5,243.16 | M109: $3.18 | N109: =M109*G109 -> $7,966.69 | O109: =L109+N109 -> $13,210
A110: 48 | B110: A301 | C110: A601-A612 | D110: 5/8" Thick Recovery Board | E110: =2384.64 -> 2385 | F110: 5% | G110: 2504 | H110: SF | I110: 0.02 | J110: 50.70 | K110: $48.89 | L110: $2,478.58 | M110: $1.41 | N110: $3,520.94 | O110: $6,000
A111: 49 | B111: A301 | C111: A601-A612 | D111: 2" Polyisocyanurate Rigid Insulation Board; Taper As Required - (R-32.5 Minimum) Basis Of Design: Atlas Roofing Corporation | E111: =E110*3 -> 7154 | F111: 5% | G111: 7512 | H111: SF | I111: 0.02 | J111: 181.34 | K111: $45.89 | L111: $8,321.68 | M111: $2.00 | N111: $15,042.01 | O111: $23,364
A112: 50 | B112: A301 | C112: Specs. | D112: Typ. Membrane Splice Per Manufacturer Requirements & - Adhesive Per Manufacturer Requirements - Hot Air Weld Per Manufacturer Requirements | E112: =2384.64 -> 2385 | F112: 5% | G112: 2504 | H112: SF | I112: 0.02 | J112: 60.45 | K112: $48.89 | L112: $2,955.23 | M112: $1.21 | N112: $3,030.69 | O112: $5,986
D114: Warranty Period: 20 years from date of Substantial Completion
D116: ROOF ASSEMBLY TYPE "A3" - TPO MEMBRANE
A117: 51 | B117: A301 | C117: A601-A612 | D117: 80-Mil TPO Roof Membrane - Pitch: 3:12 Basis Of Design: Carlisle SynTec Incorporated | E117: =7941.32*1.03 -> 8180 | F117: 5% | G117: =E117+(E117*F117) -> 8589 | H117: SF | I117: 0.04 | J117: =I117*G117 -> 367.86 | K117: $48.89 | L117: =K117*J117 -> $17,984.57 | M117: $3.18 | N117: =M117*G117 -> $27,326.58 | O117: =L117+N117 -> $45,311
A118: 52 | B118: A301 | C118: A601-A612 | D118: 5/8" Thick Recovery Board | E118: =7941.32*1.03 -> 8180 | F118: 5% | G118: 8589 | H118: SF | I118: 0.02 | J118: 173.90 | K118: $48.89 | L118: $8,501.80 | M118: $1.41 | N118: $12,077.20 | O118: $20,579
A119: 53 | B119: A301 | C119: A601-A612 | D119: 2" Polyisocyanurate Rigid Insulation Board; Taper As Required - (R-32.5 Minimum) Basis Of Design: Atlas Roofing Corporation | E119: =E118*3 -> 24539 | F119: 5% | G119: 25766 | H119: SF | I119: 0.02 | J119: 622.01 | K119: $45.89 | L119: $28,544.23 | M119: $2.00 | N119: $51,595.64 | O119: $80,140
A120: 54 | B120: A301 | C120: Specs. | D120: Typ. Membrane Splice Per Manufacturer Requirements & - Adhesive Per Manufacturer Requirements - Hot Air Weld Per Manufacturer Requirements | E120: =7941.32*1.03 -> 8180 | F120: 5% | G120: 8589 | H120: SF | I120: 0.02 | J120: 207.34 | K120: $48.89 | L120: $10,136.76 | M120: $1.21 | N120: $10,395.57 | O120: $20,532
D122: Warranty Period: 20 years from date of Substantial Completion
D124: ROOF ASSEMBLY TYPE "A4" - TPO MEMBRANE
A125: 55 | B125: A301 | C125: A601-A612 | D125: 80-Mil TPO Roof Membrane Basis Of Design: Carlisle SynTec Incorporated | E125: =2071.58 -> 2072 | F125: 5% | G125: =E125+(E125*F125) -> 2175 | H125: SF | I125: 0.04 | J125: =I125*G125 -> 93.16 | K125: $48.89 | L125: =K125*J125 -> $4,554.83 | M125: $3.18 | N125: =M125*G125 -> $6,920.81 | O125: =L125+N125 -> $11,476
A126: 56 | B126: A301 | C126: A601-A612 | D126: 5/8" Thick Recovery Board | E126: =2071.58 -> 2072 | F126: 5% | G126: 2175 | H126: SF | I126: 0.02 | J126: 44.04 | K126: $48.89 | L126: $2,153.19 | M126: $1.41 | N126: $3,058.71 | O126: $5,212
A127: 57 | B127: A301 | C127: A601-A612 | D127: 2" Polyisocyanurate Rigid Insulation Board; Taper As Required - (R-32.5 Minimum) Basis Of Design: Atlas Roofing Corporation | E127: =E126*3 -> 6215 | F127: 5% | G127: 6525 | H127: SF | I127: 0.02 | J127: 157.53 | K127: $45.89 | L127: $7,229.20 | M127: $2.00 | N127: $13,067.27 | O127: $20,296
A128: 58 | B128: A301 | C128: Specs. | D128: Typ. Membrane Splice Per Manufacturer Requirements & - Adhesive Per Manufacturer Requirements - Hot Air Weld Per Manufacturer Requirements | E128: =2071.58 -> 2072 | F128: 5% | G128: 2175 | H128: SF | I128: 0.02 | J128: 52.51 | K128: $48.89 | L128: $2,567.27 | M128: $1.21 | N128: $2,632.81 | O128: $5,200
D130: Warranty Period: 20 years from date of Substantial Completion
D132: ROOF ASSEMBLY TYPE "A5" - TPO MEMBRANE
A133: 59 | B133: A301 | C133: A601-A612 | D133: 80-Mil TPO Roof Membrane - Pitch: 3:12 Basis Of Design: Carlisle SynTec Incorporated | E133: =2793.95*1.03 -> 2878 | F133: 5% | G133: =E133+(E133*F133) -> 3022 | H133: SF | I133: 0.04 | J133: =I133*G133 -> 129.42 | K133: $48.89 | L133: =K133*J133 -> $6,327.41 | M133: $3.18 | N133: =M133*G133 -> $9,614.16 | O133: =L133+N133 -> $15,942
A134: 60 | B134: A301 | C134: A601-A612 | D134: 5/8" Thick Recovery Board | E134: =2793.95*1.03 -> 2878 | F134: 5% | G134: 3022 | H134: SF | I134: 0.02 | J134: 61.18 | K134: $48.89 | L134: $2,991.14 | M134: $1.41 | N134: $4,249.05 | O134: $7,240
A135: 61 | B135: A301 | C135: A601-A612 | D135: 2" Polyisocyanurate Rigid Insulation Board; Taper As Required - (R-32.5 Minimum) Basis Of Design: Atlas Roofing Corporation | E135: =E134*3 -> 8633 | F135: 5% | G135: 9065 | H135: SF | I135: 0.02 | J135: 218.84 | K135: $45.89 | L135: $10,042.56 | M135: $2.00 | N135: $18,152.60 | O135: $28,195
A136: 62 | B136: A301 | C136: Specs. | D136: Typ. Membrane Splice Per Manufacturer Requirements & - Adhesive Per Manufacturer Requirements - Hot Air Weld Per Manufacturer Requirements | E136: =2793.95*1.03 -> 2878 | F136: 5% | G136: 3022 | H136: SF | I136: 0.02 | J136: 72.95 | K136: $48.89 | L136: $3,566.36 | M136: $1.21 | N136: $3,657.41 | O136: $7,224
D138: Warranty Period: 20 years from date of Substantial Completion
D140: ROOF ASSEMBLY TYPE "B1" - TPO MEMBRANE
A141: 63 | B141: A301 | C141: A601-A612 | D141: 80-Mil TPO Roof Membrane - Pitch: 3:12 Basis Of Design: Carlisle SynTec Incorporated | E141: =6283.63*1.03 -> 6472 | F141: 5% | G141: =E141+(E141*F141) -> 6796 | H141: SF | I141: 0.04 | J141: =I141*G141 -> 291.07 | K141: $48.89 | L141: =K141*J141 -> $14,230.43 | M141: $3.18 | N141: =M141*G141 -> $21,622.36 | O141: =L141+N141 -> $35,853
A142: 64 | B142: A301 | C142: A601-A612 | D142: 5/8" Thick Recovery Board | E142: =6283.63*1.03 -> 6472 | F142: 5% | G142: 6796 | H142: SF | I142: 0.02 | J142: 137.60 | K142: $48.89 | L142: $6,727.11 | M142: $1.41 | N142: $9,556.18 | O142: $16,283
A143: 65 | B143: A301 | C143: A601-A612 | D143: 2" Polyisocyanurate Rigid Insulation Board; Taper As Required - (R-32.5 Minimum) Basis Of Design: Atlas Roofing Corporation | E143: =E142*3 -> 19416 | F143: 5% | G143: 20387 | H143: SF | I143: 0.02 | J143: 492.17 | K143: $45.89 | L143: $22,585.84 | M143: $2.00 | N143: $40,825.44 | O143: $63,411
A144: 66 | B144: A301 | C144: Specs. | D144: Typ. Membrane Splice Per Manufacturer Requirements & - Adhesive Per Manufacturer Requirements - Hot Air Weld Per Manufacturer Requirements | E144: =6283.63*1.03 -> 6472 | F144: 5% | G144: 6796 | H144: SF | I144: 0.02 | J144: 164.06 | K144: $48.89 | L144: $8,020.79 | M144: $1.21 | N144: $8,225.57 | O144: $16,246
A146: =IF(H146<>"",1+MAX(A136:A145),"") ->  | D146: Warranty Period: 20 years from date of Substantial Completion
D148: ROOF ASSEMBLY TYPE "B2" - TPO MEMBRANE
A149: 67 | B149: A301 | C149: A601-A612 | D149: 80-Mil TPO Roof Membrane Basis Of Design: Carlisle SynTec Incorporated | E149: =2368.27 -> 2368 | F149: 5% | G149: =E149+(E149*F149) -> 2487 | H149: SF | I149: 0.04 | J149: =I149*G149 -> 106.51 | K149: $48.89 | L149: =K149*J149 -> $5,207.16 | M149: $3.18 | N149: =M149*G149 -> $7,912.01 | O149: =L149+N149 -> $13,119
A150: 68 | B150: A301 | C150: A601-A612 | D150: 5/8" Thick Recovery Board | E150: =2368.27 -> 2368 | F150: 5% | G150: 2487 | H150: SF | I150: 0.02 | J150: 50.35 | K150: $48.89 | L150: $2,461.57 | M150: $1.41 | N150: $3,496.77 | O150: $5,958
A151: 69 | B151: A301 | C151: A601-A612 | D151: 2" Polyisocyanurate Rigid Insulation Board; Taper As Required - (R-32.5 Minimum) Basis Of Design: Atlas Roofing Corporation | E151: =E150*3 -> 7105 | F151: 5% | G151: 7460 | H151: SF | I151: 0.02 | J151: 180.09 | K151: $45.89 | L151: $8,264.56 | M151: $2.00 | N151: $14,938.75 | O151: $23,203
A152: 70 | B152: A301 | C152: Specs. | D152: Typ. Membrane Splice Per Manufacturer Requirements & - Adhesive Per Manufacturer Requirements - Hot Air Weld Per Manufacturer Requirements | E152: =2368.27 -> 2368 | F152: 5% | G152: 2487 | H152: SF | I152: 0.02 | J152: 60.03 | K152: $48.89 | L152: $2,934.95 | M152: $1.21 | N152: $3,009.88 | O152: $5,945
D154: Warranty Period: 20 years from date of Substantial Completion
D156: ROOF ASSEMBLY TYPE "B3" - TPO MEMBRANE
A157: 71 | B157: A301 | C157: A601-A612 | D157: 80-Mil TPO Roof Membrane - Pitch: 3:12 Basis Of Design: Carlisle SynTec Incorporated | E157: =7937.94*1.03 -> 8176 | F157: 5% | G157: =E157+(E157*F157) -> 8585 | H157: SF | I157: 0.04 | J157: =I157*G157 -> 367.70 | K157: $48.89 | L157: =K157*J157 -> $17,976.91 | M157: $3.18 | N157: =M157*G157 -> $27,314.95 | O157: =L157+N157 -> $45,292
A158: 72 | B158: A301 | C158: A601-A612 | D158: 5/8" Thick Recovery Board | E158: =7937.94*1.03 -> 8176 | F158: 5% | G158: 8585 | H158: SF | I158: 0.02 | J158: 173.82 | K158: $48.89 | L158: $8,498.18 | M158: $1.41 | N158: $12,072.06 | O158: $20,570
A159: 73 | B159: A301 | C159: A601-A612 | D159: 2" Polyisocyanurate Rigid Insulation Board; Taper As Required - (R-32.5 Minimum) Basis Of Design: Atlas Roofing Corporation | E159: =E158*3 -> 24528 | F159: 5% | G159: 25755 | H159: SF | I159: 0.02 | J159: 621.75 | K159: $45.89 | L159: $28,532.08 | M159: $2.00 | N159: $51,573.68 | O159: $80,106
A160: 74 | B160: A301 | C160: Specs. | D160: Typ. Membrane Splice Per Manufacturer Requirements & - Adhesive Per Manufacturer Requirements - Hot Air Weld Per Manufacturer Requirements | E160: =7937.94*1.03 -> 8176 | F160: 5% | G160: 8585 | H160: SF | I160: 0.02 | J160: 207.25 | K160: $48.89 | L160: $10,132.44 | M160: $1.21 | N160: $10,391.14 | O160: $20,524
D162: Warranty Period: 20 years from date of Substantial Completion
D164: ROOF ASSEMBLY TYPE "B4" - TPO MEMBRANE
A165: 75 | B165: A301 | C165: A601-A612 | D165: 80-Mil TPO Roof Membrane Basis Of Design: Carlisle SynTec Incorporated | E165: =2060.8 -> 2061 | F165: 5% | G165: =E165+(E165*F165) -> 2164 | H165: SF | I165: 0.04 | J165: =I165*G165 -> 92.68 | K165: $48.89 | L165: =K165*J165 -> $4,531.12 | M165: $3.18 | N165: =M165*G165 -> $6,884.80 | O165: =L165+N165 -> $11,416
A166: 76 | B166: A301 | C166: A601-A612 | D166: 5/8" Thick Recovery Board | E166: =2060.8 -> 2061 | F166: 5% | G166: 2164 | H166: SF | I166: 0.02 | J166: 43.81 | K166: $48.89 | L166: $2,141.99 | M166: $1.41 | N166: $3,042.79 | O166: $5,185
A167: 77 | B167: A301 | C167: A601-A612 | D167: 2" Polyisocyanurate Rigid Insulation Board; Taper As Required - (R-32.5 Minimum) Basis Of Design: Atlas Roofing Corporation | E167: =E166*3 -> 6182 | F167: 5% | G167: 6492 | H167: SF | I167: 0.02 | J167: 156.71 | K167: $45.89 | L167: $7,191.58 | M167: $2.00 | N167: $12,999.27 | O167: $20,191
A168: 78 | B168: A301 | C168: Specs. | D168: Typ. Membrane Splice Per Manufacturer Requirements & - Adhesive Per Manufacturer Requirements - Hot Air Weld Per Manufacturer Requirements | E168: =2060.8 -> 2061 | F168: 5% | G168: 2164 | H168: SF | I168: 0.02 | J168: 52.24 | K168: $48.89 | L168: $2,553.91 | M168: $1.21 | N168: $2,619.11 | O168: $5,173
D170: Warranty Period: 20 years from date of Substantial Completion
D172: ROOF ASSEMBLY TYPE "B5" - TPO MEMBRANE
A173: 79 | B173: A301 | C173: A601-A612 | D173: 80-Mil TPO Roof Membrane - Pitch: 3:12 Basis Of Design: Carlisle SynTec Incorporated | E173: =2790.26*1.03 -> 2874 | F173: 5% | G173: =E173+(E173*F173) -> 3018 | H173: SF | I173: 0.04 | J173: =I173*G173 -> 129.25 | K173: $48.89 | L173: =K173*J173 -> $6,319.05 | M173: $3.18 | N173: =M173*G173 -> $9,601.46 | O173: =L173+N173 -> $15,921
A174: 80 | B174: A301 | C174: A601-A612 | D174: 5/8" Thick Recovery Board | E174: =2790.26*1.03 -> 2874 | F174: 5% | G174: 3018 | H174: SF | I174: 0.02 | J174: 61.10 | K174: $48.89 | L174: $2,987.19 | M174: $1.41 | N174: $4,243.44 | O174: $7,231
A175: 81 | B175: A301 | C175: A601-A612 | D175: 2" Polyisocyanurate Rigid Insulation Board; Taper As Required - (R-32.5 Minimum) Basis Of Design: Atlas Roofing Corporation | E175: =E174*3 -> 8622 | F175: 5% | G175: 9053 | H175: SF | I175: 0.02 | J175: 218.55 | K175: $45.89 | L175: $10,029.29 | M175: $2.00 | N175: $18,128.63 | O175: $28,158
A176: 82 | B176: A301 | C176: Specs. | D176: Typ. Membrane Splice Per Manufacturer Requirements & - Adhesive Per Manufacturer Requirements - Hot Air Weld Per Manufacturer Requirements | E176: =2790.26*1.03 -> 2874 | F176: 5% | G176: 3018 | H176: SF | I176: 0.02 | J176: 72.85 | K176: $48.89 | L176: $3,561.65 | M176: $1.21 | N176: $3,652.58 | O176: $7,214
D178: Warranty Period: 20 years from date of Substantial Completion
D180: ROOF ASSEMBLY TYPE "C1" - TPO MEMBRANE
A181: 83 | B181: A301 | C181: A601-A612 | D181: 80-Mil TPO Roof Membrane Basis Of Design: Carlisle SynTec Incorporated | E181: =1609.66 -> 1610 | F181: 5% | G181: =E181+(E181*F181) -> 1690 | H181: SF | I181: 0.04 | J181: =I181*G181 -> 72.39 | K181: $48.89 | L181: =K181*J181 -> $3,539.19 | M181: $3.18 | N181: =M181*G181 -> $5,377.61 | O181: =L181+N181 -> $8,917
A182: 84 | B182: A301 | C182: A601-A612 | D182: 5/8" Thick Recovery Board | E182: =1609.66 -> 1610 | F182: 5% | G182: 1690 | H182: SF | I182: 0.02 | J182: 34.22 | K182: $48.89 | L182: $1,673.07 | M182: $1.41 | N182: $2,376.68 | O182: $4,050
A183: 85 | B183: A301 | C183: A601-A612 | D183: 2" Polyisocyanurate Rigid Insulation Board; Taper As Required - (R-32.5 Minimum) Basis Of Design: Atlas Roofing Corporation | E183: =E182*3 -> 4829 | F183: 5% | G183: 5070 | H183: SF | I183: 0.02 | J183: 122.41 | K183: $45.89 | L183: $5,617.23 | M183: $2.00 | N183: $10,153.53 | O183: $15,771
A184: 86 | B184: A301 | C184: Specs. | D184: Typ. Membrane Splice Per Manufacturer Requirements & - Adhesive Per Manufacturer Requirements - Hot Air Weld Per Manufacturer Requirements | E184: =1609.66 -> 1610 | F184: 5% | G184: 1690 | H184: SF | I184: 0.02 | J184: 40.80 | K184: $48.89 | L184: $1,994.82 | M184: $1.21 | N184: $2,045.75 | O184: $4,041
D186: Warranty Period: 20 years from date of Substantial Completion
D188: ROOF ASSEMBLY TYPE "C2" - TPO MEMBRANE
A189: 87 | B189: A301 | C189: A601-A612 | D189: 80-Mil TPO Roof Membrane Basis Of Design: Carlisle SynTec Incorporated | E189: =6422.43 -> 6422 | F189: 5% | G189: =E189+(E189*F189) -> 6744 | H189: SF | I189: 0.04 | J189: =I189*G189 -> 288.83 | K189: $48.89 | L189: =K189*J189 -> $14,121.13 | M189: $3.18 | N189: =M189*G189 -> $21,456.29 | O189: =L189+N189 -> $35,577
A190: 88 | B190: A301 | C190: A601-A612 | D190: 5/8" Thick Recovery Board | E190: =6422.43 -> 6422 | F190: 5% | G190: 6744 | H190: SF | I190: 0.02 | J190: 136.54 | K190: $48.89 | L190: $6,675.44 | M190: $1.41 | N190: $9,482.78 | O190: $16,158
A191: 89 | B191: A301 | C191: A601-A612 | D191: 2" Polyisocyanurate Rigid Insulation Board; Taper As Required - (R-32.5 Minimum) Basis Of Design: Atlas Roofing Corporation | E191: =E190*3 -> 19267 | F191: 5% | G191: 20231 | H191: SF | I191: 0.02 | J191: 488.39 | K191: $45.89 | L191: $22,412.37 | M191: $2.00 | N191: $40,511.89 | O191: $62,924
A192: 90 | B192: A301 | C192: Specs. | D192: Typ. Membrane Splice Per Manufacturer Requirements & - Adhesive Per Manufacturer Requirements - Hot Air Weld Per Manufacturer Requirements | E192: =6422.43 -> 6422 | F192: 5% | G192: 6744 | H192: SF | I192: 0.02 | J192: 162.80 | K192: $48.89 | L192: $7,959.18 | M192: $1.21 | N192: $8,162.39 | O192: $16,122
D194: Warranty Period: 20 years from date of Substantial Completion
D196: ROOF ASSEMBLY TYPE "C3" - TPO MEMBRANE
A197: 91 | B197: A301 | C197: A601-A612 | D197: 80-Mil TPO Roof Membrane Basis Of Design: Carlisle SynTec Incorporated | E197: =2617.76 -> 2618 | F197: 5% | G197: =E197+(E197*F197) -> 2749 | H197: SF | I197: 0.04 | J197: =I197*G197 -> 117.73 | K197: $48.89 | L197: =K197*J197 -> $5,755.72 | M197: $3.18 | N197: =M197*G197 -> $8,745.51 | O197: =L197+N197 -> $14,501
A198: 92 | B198: A301 | C198: A601-A612 | D198: 5/8" Thick Recovery Board | E198: =2617.76 -> 2618 | F198: 5% | G198: 2749 | H198: SF | I198: 0.02 | J198: 55.65 | K198: $48.89 | L198: $2,720.89 | M198: $1.41 | N198: $3,865.15 | O198: $6,586
A199: 93 | B199: A301 | C199: A601-A612 | D199: 2" Polyisocyanurate Rigid Insulation Board; Taper As Required - (R-32.5 Minimum) Basis Of Design: Atlas Roofing Corporation | E199: =E198*3 -> 7853 | F199: 5% | G199: 8246 | H199: SF | I199: 0.02 | J199: 199.07 | K199: $45.89 | L199: $9,135.20 | M199: $2.00 | N199: $16,512.50 | O199: $25,648
A200: 94 | B200: A301 | C200: Specs. | D200: Typ. Membrane Splice Per Manufacturer Requirements & - Adhesive Per Manufacturer Requirements - Hot Air Weld Per Manufacturer Requirements | E200: =2617.76 -> 2618 | F200: 5% | G200: 2749 | H200: SF | I200: 0.02 | J200: 66.36 | K200: $48.89 | L200: $3,244.13 | M200: $1.21 | N200: $3,326.96 | O200: $6,571
D202: Warranty Period: 20 years from date of Substantial Completion
D204: ROOF ASSEMBLY TYPE "D" - TPO MEMBRANE
A205: 95 | B205: A301 | C205: A601-A612 | D205: 80-Mil TPO Roof Membrane Basis Of Design: Carlisle SynTec Incorporated | E205: =3254.41 -> 3254 | F205: 5% | G205: =E205+(E205*F205) -> 3417 | H205: SF | I205: 0.04 | J205: =I205*G205 -> 146.36 | K205: $48.89 | L205: =K205*J205 -> $7,155.54 | M205: $3.18 | N205: =M205*G205 -> $10,872.45 | O205: =L205+N205 -> $18,028
A206: 96 | B206: A301 | C206: A601-A612 | D206: 5/8" Thick Recovery Board | E206: =3254.41 -> 3254 | F206: 5% | G206: 3417 | H206: SF | I206: 0.02 | J206: 69.19 | K206: $48.89 | L206: $3,382.62 | M206: $1.41 | N206: $4,805.17 | O206: $8,188
A207: 97 | B207: A301 | C207: A601-A612 | D207: 2" Polyisocyanurate Rigid Insulation Board; Taper As Required - (R-32.5 Minimum) Basis Of Design: Atlas Roofing Corporation | E207: =E206*3 -> 9763 | F207: 5% | G207: 10251 | H207: SF | I207: 0.02 | J207: 247.48 | K207: $45.89 | L207: $11,356.92 | M207: $2.00 | N207: $20,528.41 | O207: $31,885
A208: 98 | B208: A301 | C208: Specs. | D208: Typ. Membrane Splice Per Manufacturer Requirements & - Adhesive Per Manufacturer Requirements - Hot Air Weld Per Manufacturer Requirements | E208: =3254.41 -> 3254 | F208: 5% | G208: 3417 | H208: SF | I208: 0.02 | J208: 82.49 | K208: $48.89 | L208: $4,033.12 | M208: $1.21 | N208: $4,136.09 | O208: $8,169
A210: =IF(H210<>"",1+MAX(A200:A209),"") ->  | D210: Warranty Period: 20 years from date of Substantial Completion
D212: ROOF ASSEMBLY TYPE "E1" - TPO MEMBRANE
A213: 99 | B213: A301 | C213: A601-A612 | D213: 80-Mil TPO Roof Membrane - Pitch: 2:12 Basis Of Design: Carlisle SynTec Incorporated | E213: =4039.19*1.02 -> 4120 | F213: 5% | G213: =E213+(E213*F213) -> 4326 | H213: SF | I213: 0.04 | J213: =I213*G213 -> 185.29 | K213: $48.89 | L213: =K213*J213 -> $9,058.67 | M213: $3.18 | N213: =M213*G213 -> $13,764.16 | O213: =L213+N213 -> $22,823
A214: 100 | B214: A301 | C214: A601-A612 | D214: 5/8" Thick Recovery Board | E214: =4039.19*1.02 -> 4120 | F214: 5% | G214: 4326 | H214: SF | I214: 0.02 | J214: 87.59 | K214: $48.89 | L214: $4,282.28 | M214: $1.41 | N214: $6,083.18 | O214: $10,365
A215: 101 | B215: A301 | C215: A601-A612 | D215: 2" Polyisocyanurate Rigid Insulation Board; Taper As Required - (R-32.5 Minimum) Basis Of Design: Atlas Roofing Corporation | E215: =4039.19*1.02 -> 4120 | F215: 5% | G215: 4326 | H215: SF | I215: 0.02 | J215: 104.43 | K215: $45.89 | L215: $4,792.49 | M215: $2.00 | N215: $8,662.76 | O215: $13,455
A216: 102 | B216: A301 | C216: Specs. | D216: Typ. Membrane Splice Per Manufacturer Requirements & - Adhesive Per Manufacturer Requirements - Hot Air Weld Per Manufacturer Requirements | E216: =E215*3 -> 12360 | F216: 5% | G216: 12978 | H216: SF | I216: 0.02 | J216: 313.30 | K216: $48.89 | L216: $15,317.39 | M216: $1.21 | N216: $15,708.47 | O216: $31,026
D218: Warranty Period: 20 years from date of Substantial Completion
D220: ROOF ASSEMBLY TYPE "E2" - TPO MEMBRANE
A221: 103 | B221: A301 | C221: A601-A612 | D221: 80-Mil TPO Roof Membrane Basis Of Design: Carlisle SynTec Incorporated | E221: =2651.16 -> 2651 | F221: 5% | G221: =E221+(E221*F221) -> 2784 | H221: SF | I221: 0.04 | J221: =I221*G221 -> 119.23 | K221: $48.89 | L221: =K221*J221 -> $5,829.16 | M221: $3.18 | N221: =M221*G221 -> $8,857.09 | O221: =L221+N221 -> $14,686
A222: 104 | B222: A301 | C222: A601-A612 | D222: 5/8" Thick Recovery Board | E222: =2651.16 -> 2651 | F222: 5% | G222: 2784 | H222: SF | I222: 0.02 | J222: 56.36 | K222: $48.89 | L222: $2,755.60 | M222: $1.41 | N222: $3,914.46 | O222: $6,670
A223: 105 | B223: A301 | C223: A601-A612 | D223: 2" Polyisocyanurate Rigid Insulation Board; Taper As Required - (R-32.5 Minimum) Basis Of Design: Atlas Roofing Corporation | E223: =E222*3 -> 7953 | F223: 5% | G223: 8351 | H223: SF | I223: 0.02 | J223: 201.61 | K223: $45.89 | L223: $9,251.76 | M223: $2.00 | N223: $16,723.19 | O223: $25,975
A224: 106 | B224: A301 | C224: Specs. | D224: Typ. Membrane Splice Per Manufacturer Requirements & - Adhesive Per Manufacturer Requirements - Hot Air Weld Per Manufacturer Requirements | E224: =2651.16 -> 2651 | F224: 5% | G224: 2784 | H224: SF | I224: 0.02 | J224: 67.20 | K224: $48.89 | L224: $3,285.53 | M224: $1.21 | N224: $3,369.41 | O224: $6,655
D226: Warranty Period: 20 years from date of Substantial Completion
D228: ROOF ASSEMBLY TYPE "E3" - TPO MEMBRANE
A229: 107 | B229: A301 | C229: A601-A612 | D229: 80-Mil TPO Roof Membrane Basis Of Design: Carlisle SynTec Incorporated | E229: =3104.57 -> 3105 | F229: 5% | G229: =E229+(E229*F229) -> 3260 | H229: SF | I229: 0.04 | J229: =I229*G229 -> 139.62 | K229: $48.89 | L229: =K229*J229 -> $6,826.08 | M229: $3.18 | N229: =M229*G229 -> $10,371.86 | O229: =L229+N229 -> $17,198
A230: 108 | B230: A301 | C230: A601-A612 | D230: 5/8" Thick Recovery Board | E230: =3104.57 -> 3105 | F230: 5% | G230: 3260 | H230: SF | I230: 0.02 | J230: 66.00 | K230: $48.89 | L230: $3,226.88 | M230: $1.41 | N230: $4,583.93 | O230: $7,811
A231: 109 | B231: A301 | C231: A601-A612 | D231: 2" Polyisocyanurate Rigid Insulation Board; Taper As Required - (R-32.5 Minimum) Basis Of Design: Atlas Roofing Corporation | E231: =E230*3 -> 9314 | F231: 5% | G231: 9779 | H231: SF | I231: 0.02 | J231: 236.09 | K231: $45.89 | L231: $10,834.02 | M231: $2.00 | N231: $19,583.24 | O231: $30,417
A232: 110 | B232: A301 | C232: Specs. | D232: Typ. Membrane Splice Per Manufacturer Requirements & - Adhesive Per Manufacturer Requirements - Hot Air Weld Per Manufacturer Requirements | E232: =3104.57 -> 3105 | F232: 5% | G232: 3260 | H232: SF | I232: 0.02 | J232: 78.70 | K232: $48.89 | L232: $3,847.43 | M232: $1.21 | N232: $3,945.66 | O232: $7,793
D234: Warranty Period: 20 years from date of Substantial Completion
D236: ROOF ASSEMBLY TYPE "F" - TPO MEMBRANE
A237: 111 | B237: A301 | C237: A601-A612 | D237: 80-Mil TPO Roof Membrane Basis Of Design: Carlisle SynTec Incorporated | E237: =4607.1 -> 4607 | F237: 5% | G237: =E237+(E237*F237) -> 4837 | H237: SF | I237: 0.04 | J237: =I237*G237 -> 207.19 | K237: $48.89 | L237: =K237*J237 -> $10,129.73 | M237: $3.18 | N237: =M237*G237 -> $15,391.57 | O237: =L237+N237 -> $25,521
A238: 112 | B238: A301 | C238: A601-A612 | D238: 5/8" Thick Recovery Board | E238: =4607.1 -> 4607 | F238: 5% | G238: 4837 | H238: SF | I238: 0.02 | J238: 97.95 | K238: $48.89 | L238: $4,788.60 | M238: $1.41 | N238: $6,802.43 | O238: $11,591
A239: 113 | B239: A301 | C239: A601-A612 | D239: 2" Polyisocyanurate Rigid Insulation Board; Taper As Required - (R-32.5 Minimum) Basis Of Design: Atlas Roofing Corporation | E239: =E238*3 -> 13821 | F239: 5% | G239: 14512 | H239: SF | I239: 0.02 | J239: 350.35 | K239: $45.89 | L239: $16,077.41 | M239: $2.00 | N239: $29,061.01 | O239: $45,138
A240: 114 | B240: A301 | C240: Specs. | D240: Typ. Membrane Splice Per Manufacturer Requirements & - Adhesive Per Manufacturer Requirements - Hot Air Weld Per Manufacturer Requirements | E240: =4607.1 -> 4607 | F240: 5% | G240: 4837 | H240: SF | I240: 0.02 | J240: 116.78 | K240: $48.89 | L240: $5,709.48 | M240: $1.21 | N240: $5,855.26 | O240: $11,565
D242: Warranty Period: 20 years from date of Substantial Completion
D244: ROOF ASSEMBLY TYPE "H" - TPO MEMBRANE
A245: 115 | B245: A301 | C245: A601-A612 | D245: 80-Mil TPO Roof Membrane Basis Of Design: Carlisle SynTec Incorporated | E245: =3907 -> 3907 | F245: 5% | G245: =E245+(E245*F245) -> 4102 | H245: SF | I245: 0.04 | J245: =I245*G245 -> 175.71 | K245: $48.89 | L245: =K245*J245 -> $8,590.40 | M245: $3.18 | N245: =M245*G245 -> $13,052.65 | O245: =L245+N245 -> $21,643
A246: 116 | B246: A301 | C246: A601-A612 | D246: 5/8" Thick Recovery Board | E246: =3907 -> 3907 | F246: 5% | G246: 4102 | H246: SF | I246: 0.02 | J246: 83.06 | K246: $48.89 | L246: $4,060.92 | M246: $1.41 | N246: $5,768.72 | O246: $9,830
A247: 117 | B247: A301 | C247: A601-A612 | D247: 2" Polyisocyanurate Rigid Insulation Board; Taper As Required - (R-32.5 Minimum) Basis Of Design: Atlas Roofing Corporation | E247: =E246*3 -> 11721 | F247: 5% | G247: 12307 | H247: SF | I247: 0.02 | J247: 297.11 | K247: $45.89 | L247: $13,634.27 | M247: $2.00 | N247: $24,644.87 | O247: $38,279
A248: 118 | B248: A301 | C248: Specs. | D248: Typ. Membrane Splice Per Manufacturer Requirements & - Adhesive Per Manufacturer Requirements - Hot Air Weld Per Manufacturer Requirements | E248: =3907 -> 3907 | F248: 5% | G248: 4102 | H248: SF | I248: 0.02 | J248: 99.04 | K248: $48.89 | L248: $4,841.86 | M248: $1.21 | N248: $4,965.48 | O248: $9,807
D250: Warranty Period: 20 years from date of Substantial Completion
D252: ROOF ASSEMBLY TYPE "LOW ROOF" - TPO MEMBRANE
A253: 119 | B253: A301 | C253: A601-A612 | D253: 80-Mil TPO Roof Membrane Basis Of Design: Carlisle SynTec Incorporated | E253: =172.26 -> 172 | F253: 5% | G253: =E253+(E253*F253) -> 181 | H253: SF | I253: 0.04 | J253: =I253*G253 -> 7.75 | K253: $48.89 | L253: =K253*J253 -> $378.75 | M253: $3.18 | N253: =M253*G253 -> $575.49 | O253: =L253+N253 -> $954
A254: 120 | B254: A301 | C254: A601-A612 | D254: 5/8" Thick Recovery Board | E254: =172.26 -> 172 | F254: 5% | G254: 181 | H254: SF | I254: 0.02 | J254: 3.66 | K254: $48.89 | L254: $179.05 | M254: $1.41 | N254: $254.34 | O254: $433
A255: 121 | B255: A301 | C255: A601-A612 | D255: 2" Polyisocyanurate Rigid Insulation Board; Taper As Required - (R-32.5 Minimum) Basis Of Design: Atlas Roofing Corporation | E255: =E254*3 -> 517 | F255: 5% | G255: 543 | H255: SF | I255: 0.02 | J255: 13.10 | K255: $45.89 | L255: $601.14 | M255: $2.00 | N255: $1,086.59 | O255: $1,688
A256: 122 | B256: A301 | C256: Specs. | D256: Typ. Membrane Splice Per Manufacturer Requirements & - Adhesive Per Manufacturer Requirements - Hot Air Weld Per Manufacturer Requirements | E256: =172.26 -> 172 | F256: 5% | G256: 181 | H256: SF | I256: 0.02 | J256: 4.37 | K256: $48.89 | L256: $213.48 | M256: $1.21 | N256: $218.93 | O256: $432
D258: Warranty Period: 20 years from date of Substantial Completion
D260: ROOF ASSEMBLY TYPE "SITE BUILT CANOPY" - TPO MEMBRANE
A261: 123 | B261: A301 | C261: A601-A612 | D261: 80-Mil TPO Roof Membrane Basis Of Design: Carlisle SynTec Incorporated | E261: =502.4 -> 502 | F261: 5% | G261: =E261+(E261*F261) -> 528 | H261: SF | I261: 0.04 | J261: =I261*G261 -> 22.59 | K261: $48.89 | L261: =K261*J261 -> $1,104.64 | M261: $3.18 | N261: =M261*G261 -> $1,678.44 | O261: =L261+N261 -> $2,783
A262: 124 | B262: A301 | C262: A601-A612 | D262: 1-1/2" Polyisocyanurate Rigid Insulation Board; Taper As Required Basis Of Design: Atlas Roofing Corporation | E262: =502.4 -> 502 | F262: 5% | G262: 528 | H262: SF | I262: 0.02 | J262: 12.73 | K262: $45.89 | L262: $584.41 | M262: $2.00 | N262: $1,056.36 | O262: $1,641
A263: 125 | B263: A301 | C263: Specs. | D263: Typ. Membrane Splice Per Manufacturer Requirements & - Adhesive Per Manufacturer Requirements - Hot Air Weld Per Manufacturer Requirements | E263: =502.4 -> 502 | F263: 5% | G263: 528 | H263: SF | I263: 0.02 | J263: 12.73 | K263: $48.89 | L263: $622.61 | M263: $1.21 | N263: $638.51 | O263: $1,261
D265: Warranty Period: 20 years from date of Substantial Completion
D267: ROOF ASSEMBLY TYPE "G" - PVC MEMBRANE
A268: 126 | B268: A301 | C268: A601-A612 | D268: 80-Mil PVC Roof Membrane Basis Of Design: Sikaplan | E268: =4084.27 -> 4084 | F268: 5% | G268: =E268+(E268*F268) -> 4288 | H268: SF | I268: 0.04 | J268: =I268*G268 -> 183.68 | K268: $48.89 | L268: =K268*J268 -> $8,980.17 | M268: $3.18 | N268: =M268*G268 -> $13,644.88 | O268: =L268+N268 -> $22,625
A269: 127 | B269: A301 | C269: A601-A612 | D269: 5/8" Thick Recovery Board | E269: =4084.27 -> 4084 | F269: 5% | G269: 4288 | H269: SF | I269: 0.02 | J269: 86.83 | K269: $48.89 | L269: $4,245.17 | M269: $1.41 | N269: $6,030.47 | O269: $10,276
... 115 more rows

Sheet UJ (hidden)
C2: PROJECT: | D2: 625 PARK AVE PHASE 1B
C3: ADDRESS: | D3: 625 PARK AVENUE,
D4: NEW YORK, NY-10065.
H6: DATE | I6: =TODAY() -> 2026-07-28
A7: ITEM # | B7: CSI SEC. | C7: DESCRIPTION | D7: QTY. | E7: WASTE | F7: QTY. W/ WASTE | G7: UNIT | H7: UNIT COST | I7: TRADE COST | L7: Single side areas
C8: SCOPE OF WORK | L8: Dry | M8: Wet
A9: 1 | B9: 09 29 | C9: 2 layered 5/8" thick USG fiberock brand panels for walls and ceilings. | D9: 11,635 | E9: 10% | F9: =D9*(1+E9) -> 12,799 | G9: sf | H9: $4.0 | I9: =H9*F9 -> $51,194 | J9: Type 1+Type 4+Type 6+ceiling | K9: Type 1 | L9: =2520-80 -> 2440 | M9: 280 | N9: =(2440*2+290*2+2345+3830) -> 11635
A10: 2 | B10: 09 29 | C10: 2 layerd 5/8" thick USG fiberock aqua tough brand panels for wall and ceilings in wet areas. | D10: 1,185 | E10: 10% | F10: =D10*(1+E10) -> 1,304 | G10: sf | H10: $4.5 | I10: =H10*F10 -> $5,866 | J10: Type 1+Type 4+Type 6+wet ceiling | K10: Type 2 | L10: =210-80 -> 130 | M10: 80 | N10: =(280*2+325+300) -> 1185
A11: 3 | B11: 09 29 | C11: 2 layered 2 HR rated 5/8" thick USG fiberock brand panels for walls. | D11: 260 | E11: 10% | F11: =D11*(1+E11) -> 286 | G11: sf | H11: $4.5 | I11: =H11*F11 -> $1,287 | J11: Type 2 | K11: Type 3 | N11: =130*2 -> 260
A12: 4 | B12: 09 29 | C12: 2 layered 2 HR rated 5/8" thick USG fiberock aqua tough brand panels for walls in wet areas. | D12: 160 | E12: 10% | F12: 176 | G12: sf | H12: $5.0 | I12: =H12*F12 -> $880 | J12: Type 2 | K12: Type 4 | L12: 290 | N12: =80*2 -> 160
A13: 5 | B13: 09 29 | C13: 3 layered 3 HR rated 5/8" thick USG fiberock brand panels for walls. | D13: 300 | E13: 10% | F13: 330 | G13: sf | H13: $4.0 | I13: =H13*F13 -> $1,320 | J13: Type 7 | K13: Type 5 | L13: 1200 | N13: =150*2 -> 300
A14: 6 | B14: 09 26 | C14: 3/32" thick gypsum veneer plaster skim coat. | D14: 14,740 | E14: 10% | F14: 16,214 | G14: sf | H14: $4.0 | I14: =H14*F14 -> $64,856 | J14: Type 1+Type 2+ Type 4+Type 5+Type 6 +Type 7 | K14: Type 6 | L14: =2670-325 -> 2345 | M14: 325 | N14: =SUM(N9:N13)+L13 -> 14740 | O14: =SUM(L9:M10)*2+L13+SUM(L14:M14)+L15*2+SUM(L17:M17)+L12*2 -> 14740 | P14: =N14-O14 -> 0
A15: 7 | B15: 09 22 16 | C15: 3-5/8" steel studs 20 GA @ 16" O.C. | D15: 5,750 | E15: 10% | F15: 6,325 | G15: sf | H15: $2.5 | I15: =H15*F15 -> $15,813 | J15: Type 1+Type 2+Type 6+Type 7 | K15: Type 7 | L15: 150 | N15: =SUM(L9:M10)+SUM(L14:M15) -> 5750
A16: 8 | B16: 10 22 16 | C16: 1-5/8" steel studs 20 GA @ 12" O.C. | D16: 290 | E16: 10% | F16: 319 | G16: sf | H16: $2.0 | I16: $638 | J16: Type 4 | K16: Type 8 | L16: 20
A17: 8 | B17: 09 22 26 | C17: Ceiling suspension system. | D17: 4,130 | E17: 10% | F17: 4,543 | G17: sf | H17: $3.0 | I17: =H17*F17 -> $13,629 | K17: Ceiling | L17: 3830 | M17: 300 | N17: =SUM(L17:M17) -> 4130
A18: 9 | B18: 07 21 16 | C18: Batt Insulation. | D18: 5,600 | E18: 5% | F18: 5,880 | G18: sf | H18: $2.0 | I18: =H18*F18 -> $11,760 | J18: Type 1+Type 2+ Type 6 | N18: =SUM(L9:M10)+SUM(L14:M14) -> 5600
A19: 10 | B19: 07 21 16 | C19: Batt Insulation type SAFB. | D19: 150 | E19: 10% | F19: 165 | G19: sf | H19: $2.2 | I19: =H19*F19 -> $363 | J19: Type 7 | N19: 150
A21: SUB TOTAL | I21: =SUM(I9:I19) -> $167,605
A22: INSURANCE (3%) | I22: =(3/100)*I21 -> $5,028
A23: TOTAL BASE BID | I23: =SUM(I21:I22) -> $172,633
C25: Exclusions
B26: 1 | C26: Mouldings
B27: 2 | C27: Patch work
B28: 3 | C28: Fixtures
B29: 4 | C29: Electrical work
B30: 5 | C30: Stone and/or tile work
B31: 6 | C31: Wall type 8 [no details on provided on the drawing]

Sheet DETAIL (2) (hidden)
B2: PROJECT: | C2: 625 PARK AVE PHASE 1B
B3: ADDRESS: | C3: 625 PARK AVENUE
C4: NEW YORK, NY 10065
E6: DATE | F6: =TODAY() -> 2026-07-28
A7: ITEM # | B7: DESCRIPTION | C7: UNIT COST | D7: QTY. | E7: UNIT | F7: TRADE COST
B8: SCOPE OF WORK
A9: 1 | B9: 5/8" 2 layered USG fiberock brand panels. | D9: =((2358+277+2077)-644)+3830 -> 7,898 | E9: sf | F9: =C9*D9 -> 0 | G9: Type 1+Type 4+Type 6+ceiling
A10: 2 | B10: 5/8" 2 layered USG fiberock aqua tough brand panels. (Wet area). | D10: =644+292 -> 936 | E10: sf | F10: =C10*D10 -> 0 | G10: Type 1+Type 4+Type 6+wet ceiling | I10: Height 9'6"
A11: 3 | B11: 2 HR rated 5/8" 2 layered USG fiberock brand panels. | D11: =206-78 -> 128 | E11: sf | F11: 0 | G11: Type 2 | I11: For Doors & Cabinets 1'3"
A12: 4 | B12: 2 HR rated 5/8" 2 layered USG fiberock aqua tough brand panels. (Wet area). | D12: 78 | E12: sf | F12: 0 | G12: Type 2
A13: 5 | B13: 3 HR rated 5/8" 3 layered USG fiberock brand panels. | D13: 148 | E13: sf | F13: 0 | G13: Type 7
A14: 6 | B14: 3/32" thick gypsum veneer plaster skim coat. | D14: =2538+206+277+1343+2077+148 -> 6,589 | E14: sf | F14: 0 | G14: Type 1+Type 2+ Type 4+Type 5+Type 6 +Type 7
A15: 7 | B15: 3 5/8" steel studs 20 GA @ 16" O.C. | D15: 4,968 | E15: sf | F15: 0 | G15: Type 1+Type 2+Type 6+Type 7
A16: 8 | B16: 1 5/8" steel studs 20 GA @ 12" O.C. | D16: 277 | E16: sf | F16: 0 | G16: Type 4
A17: 9 | B17: Batt sound Insulation. | D17: =2538+206+2077 -> 4,821 | E17: sf | F17: 0 | G17: Type 1+Type 2+ Type 6
A18: 10 | B18: Batt sound Insulation type SAFB. | D18: 148 | E18: sf | F18: 0 | G18: Type 7 | H18: QTY Details
H19: Type 1 | I19: 2538 | J19: 2520
A20: TOTAL | F20: =SUM(F9:F18) -> 0 | H20: Type 2 | I20: 205 | J20: 206
B21: Exclusions | H21: Type 3 | I21: N/A
A22: 1 | B22: Mouldings | H22: Type 4 | I22: 277 | J22: 290
A23: 2 | B23: Patch work | H23: Type 5 | I23: 1342 | J23: 1200
A24: 3 | B24: Fixtures | H24: Type 6 | I24: 2077 | J24: 2670
A25: 4 | B25: Electrical work | H25: Type 7 | I25: 148 | J25: 150
A26: 5 | B26: Stone and/or tile work | H26: Type 8 | I26: 22 | J26: 20 | K26: No details given
A27: 6 | H27: Ceiling | I27: 3830
H28: Wet Ceiling | I28: 292
B31: DETAILS
B32: Type 1- Interior Partition | G32: Type 2- 2HR rated Interior Partition | H32: Type
B33: 2 layers 5/8' USG fiberock brand panels (Fiberock aqua tough brand at all wet areas) Glue second layer, finished with 3-32" thick gypsum veneer plaster skim coat. 3 5/8" Stl studs 20 GA @16" O.C with Batt insulation. 2 layers 5/8" USG fiberock brand panels(Fiberock aqua tough brand at all wet areas finished 3-32" thick gypsum veneer plaster skim coat | G33: 2 layers 5/8' USG fiberock brand panels (Fiberock aqua tough brand at all wet areas) Glue second layer, finished with 3-32" thick gypsum veneer plaster skim coat. 3 5/8" Stl studs 20 GA @16" O.C with Batt insulation. 2 layers 5/8" USG fiberock brand panels(Fiberock aqua tough brand at all wet areas finished 3-32" thick gypsum veneer plaster skim coat
B35: TYPE 3 Interior partition at chase | G35: TYPE 4 Pocket door partition
B36: 2 layer 5/8" USG fiberock brand panels ( Fiberock aqua tough brand at all wet areas ) Glue second layer fill batt insulation, finished with 3/32" thick gypsum veneer plaster skim coat. 20 Ga 2-1/2" mtl studs @ 16 O.C. with batt insulation. Pipe chase space. 2 layers 5/8" USG fiberock brand panels (Fiberock aqua tough brand at all wet areas finished with 3/32" thick gypsum veneer plaster skim coat. | G36: 2 Layers 5/8" USG fiberock brand panels (Fiberock Aqua tough brand at all wet areas) Glue second layer, Finished with 3/32" thick gypsum veneer plaster skim coat. 1 5/8" 20 Ga stl studs @12 O.C. 2 layer 5/8" USG fiberock brand panels (fiberock aqua tough brand at wet areas) finished with 3/32" thick gypsum veneer plaster skim coat.
B38: TYPE 5 Existing wall skim coat | G38: TYPE 6 EXISTING WALL- Furring
B39: Apply 3/32" Thick gypsum veneer skim coat. Fill and smooth all imperfections | G39: 3 5/8" 20 Ga stl studs @ 16 O.C. 2 layers 5/8" USG fiberock brand panels dimensions from exterior wall to be varified with architect. Fill with Batt insulation, Finished with 3/32" Thick Gypsum veneer plaster skim coat
B40: TYPE 7 Interior Partition- 3 Hr rated
B41: 3 layer 5/8" USG fiberock brand panels, glue third layer finished with 3/32" thick gypsum veneer plaster skim coat. 3 5/8" stl studs 20 GA @16"O.C. Batt insulation Type SAFB. 3 layer 5/8" USG fiberock brand panels, glue third layer finished with 3-32" thick gypsum veneer plaster skim coat
